bitfinex-derivatives/quotes_BTCF0:USTF0_20250703
["timestamp","ask_amount","ask_price","bid_price","bid_amount"]
[1751522106818,0.07270144,109430.0,109420.0,2.11992256]
[1751522107117,0.32093241,109430.0,109420.0,2.61638081]
[1751522107318,0.32093241,109430.0,109420.0,1.89478081]
[1751522107510,0.32093241,109430.0,109420.0,2.61638081]
[1751522107711,0.35193241,109430.0,109420.0,2.55148081]
[1751522108219,0.35193241,109430.0,109420.0,2.51516721]
[1751522108814,0.35193241,109430.0,109420.0,2.51520103]
[1751522109618,0.10370144,109430.0,109420.0,2.51520103]
[1751522110022,0.10370144,109430.0,109420.0,2.551516]
[1751522110821,0.10370144,109430.0,109420.0,2.584516]
[1751522111422,0.10370144,109430.0,109420.0,2.5845162]
[1751522111622,0.10370144,109430.0,109420.0,2.08805426]
[1751522111824,0.35193241,109430.0,109420.0,2.28174032]
[1751522112029,0.35193241,109430.0,109420.0,2.52996499]
[1751522112528,0.35193241,109430.0,109420.0,2.49696499]
[1751522115734,0.35193241,109430.0,109420.0,2.5515099]
[1751522116237,0.35193241,109430.0,109420.0,2.51519493]
[1751522116636,0.10370144,109430.0,109420.0,2.51519493]
[1751522116837,0.35193241,109430.0,109420.0,2.51519493]
[1751522118432,0.35193241,109430.0,109420.0,2.46065002]
[1751522119342,0.10370144,109430.0,109420.0,2.46065002]
[1751522120237,0.10370144,109430.0,109420.0,2.53318927]
[1751522122540,0.10370144,109430.0,109420.0,2.56318927]
[1751522122838,0.10370144,109430.0,109420.0,2.06672733]
[1751522123034,0.10370144,109430.0,109420.0,2.56318927]
[1751522128241,0.10370144,109430.0,109420.0,2.56202927]
[1751522128737,0.10370144,109430.0,109420.0,2.54409002]
[1751522132342,0.10370144,109430.0,109420.0,2.57649002]
[1751522133346,0.10370144,109430.0,109420.0,2.57343465]
[1751522133646,0.10370144,109430.0,109420.0,2.57649233]
[1751522134146,0.10370144,109430.0,109420.0,2.59443158]
[1751522135044,0.10405261,109430.0,109420.0,2.59443158]
[1751522136441,0.10405261,109430.0,109420.0,2.09796964]
[1751522136642,0.35228358,109430.0,109420.0,2.59443158]
[1751522136843,0.10405261,109430.0,109420.0,2.59443158]
[1751522140148,0.10373632,109430.0,109420.0,2.59443158]
[1751522140349,0.10373632,109430.0,109420.0,2.52189233]
[1751522141250,0.10373632,109430.0,109420.0,2.52183069]
[1751522142651,0.10373632,109430.0,109420.0,2.36793363]
[1751522142847,0.10373632,109430.0,109420.0,2.52183069]
[1751522144551,0.10373632,109430.0,109420.0,2.59436994]
[1751522145851,0.10373632,109430.0,109420.0,2.52183069]
[1751522148651,0.10373632,109430.0,109420.0,1.87276994]
[1751522148851,0.10373632,109430.0,109420.0,2.59436994]
[1751522149050,0.10373632,109430.0,109420.0,2.52183069]
[1751522150049,0.10373632,109430.0,109420.0,2.59436994]
[1751522152752,0.10373632,109430.0,109420.0,2.52183069]
[1751522155456,0.10373632,109430.0,109420.0,2.5218288]
[1751522155755,0.10373632,109430.0,109420.0,2.59436805]
[1751522158961,0.10373632,109430.0,109420.0,2.09790611]
[1751522159256,0.10373632,109430.0,109420.0,2.59436805]
[1751522161864,0.78290346,109430.0,109420.0,0.41838402]
[1751522162057,0.1827219,109420.0,109410.0,0.2284082]
[1751522162366,0.74308384,109420.0,109410.0,0.21913026]
[1751522162562,0.74308384,109420.0,109410.0,0.24640528]
[1751522162866,0.74308384,109420.0,109410.0,0.49463625]
[1751522163065,0.74308384,109420.0,109410.0,0.24640528]
[1751522163565,0.74308384,109420.0,109410.0,0.24740528]
[1751522163566,0.77428384,109420.0,109410.0,0.24740528]
[1751522163864,0.52605287,109420.0,109410.0,0.49563625]
[1751522164069,0.77428384,109420.0,109410.0,0.24840528]
[1751522164370,0.77428384,109420.0,109410.0,0.49663625]
[1751522165162,0.77428384,109420.0,109410.0,0.50568288]
[1751522166466,0.77428384,109420.0,109410.0,0.46927692]
[1751522167965,0.77428384,109420.0,109410.0,0.22104595]
[1751522168269,0.77428384,109420.0,109410.0,0.46927692]
[1751522168572,0.2778219,109420.0,109410.0,0.46927692]
[1751522168767,0.52605287,109420.0,109410.0,0.46927692]
[1751522169469,0.77428384,109420.0,109410.0,0.46023029]
[1751522172972,0.77428384,109420.0,109410.0,0.21199932]
[1751522174774,0.77428384,109420.0,109410.0,0.46023029]
[1751522175771,0.77428384,109420.0,109410.0,0.21199932]
[1751522176875,0.52605287,109420.0,109410.0,0.21199932]
[1751522177772,0.77428384,109420.0,109410.0,0.21199932]
[1751522178175,0.77428384,109420.0,109410.0,0.46023029]
[1751522179174,0.77428384,109420.0,109410.0,0.21199932]
[1751522180376,0.77428384,109420.0,109410.0,0.46023029]
[1751522181173,0.77428384,109420.0,109410.0,0.49213029]
[1751522181675,0.77428384,109420.0,109410.0,0.64602735]
[1751522182077,0.2778219,109420.0,109410.0,0.64602735]
[1751522182265,0.77428384,109420.0,109410.0,0.64602735]
[1751522183276,0.52605287,109420.0,109410.0,0.64602735]
[1751522184779,0.77428384,109420.0,109410.0,0.64602735]
[1751522184978,0.77428384,109420.0,109410.0,0.64598489]
[1751522185177,0.49485287,109420.0,109410.0,0.64598489]
[1751522185380,0.52585287,109420.0,109410.0,0.68239085]
[1751522185977,0.52585287,109420.0,109410.0,0.64598489]
[1751522186179,0.77408384,109420.0,109410.0,0.64598489]
[1751522186377,0.77408384,109420.0,109410.0,0.43415988]
[1751522186678,0.77408384,109420.0,109410.0,0.64598489]
[1751522187380,0.77408384,109420.0,109410.0,0.39775392]
[1751522187677,0.1827219,109420.0,109410.0,0.64598489]
[1751522187874,0.43095287,109420.0,109410.0,0.68239085]
[1751522188077,0.43095287,109420.0,109410.0,0.74549085]
[1751522188677,0.43095287,109420.0,109410.0,0.71519085]
[1751522188877,0.43095287,109420.0,109410.0,0.74569085]
[1751522189476,0.43095287,109420.0,109410.0,0.71845829]
[1751522190383,0.46105287,109420.0,109410.0,0.71845829]
[1751522191384,0.46105287,109420.0,109410.0,0.77290808]
[1751522191785,0.46105287,109420.0,109410.0,0.52467711]
[1751522191982,0.46105287,109420.0,109410.0,0.77290808]
[1751522196189,0.46105287,109420.0,109410.0,0.71845829]
[1751522196486,0.49255287,109420.0,109410.0,0.77290808]
[1751522196688,0.49255287,109420.0,109410.0,0.52467711]
[1751522196986,0.49255287,109420.0,109410.0,0.71845829]
[1751522197188,0.2443219,109420.0,109410.0,0.71845829]
[1751522197392,0.49255287,109420.0,109410.0,0.71845829]
[1751522197988,0.49255287,109420.0,109410.0,0.77290808]
[1751522198382,0.46105287,109420.0,109410.0,0.77290808]
[1751522202691,0.46105287,109420.0,109410.0,0.61901102]
[1751522202894,0.46105287,109420.0,109410.0,0.77290808]
[1751522204388,0.49145287,109420.0,109410.0,0.77290808]
[1751522211496,0.2128219,109420.0,109410.0,0.77290808]
[1751522211798,0.46105287,109420.0,109410.0,0.77290808]
[1751522212192,0.23917502,109430.0,109410.0,1.11685742]
[1751522212393,0.67211119,109430.0,109420.0,0.45823788]
[1751522212593,0.67211119,109430.0,109420.0,0.48833788]
[1751522212795,0.67211119,109430.0,109420.0,0.52474384]
[1751522214005,0.67211119,109430.0,109420.0,0.27651287]
[1751522214299,0.67211119,109430.0,109420.0,0.52474384]
[1751522215396,0.67211119,109430.0,109420.0,0.6786409]
[1751522215702,0.22294152,109430.0,109420.0,1.29188686]
[1751522215902,0.22294152,109430.0,109420.0,1.32238686]
[1751522216205,0.22294152,109430.0,109420.0,1.12860568]
[1751522217209,0.47117249,109430.0,109420.0,1.12860568]
[1751522219411,0.47117249,109430.0,109420.0,1.07415589]
[1751522220206,0.22294152,109430.0,109420.0,1.07415589]
[1751522220607,0.47117249,109430.0,109420.0,1.07415589]
[1751522221410,0.47117249,109430.0,109420.0,0.82592492]
[1751522221709,0.47117249,109430.0,109420.0,1.07415589]
[1751522222008,0.22294152,109430.0,109420.0,2.15687308]
[1751522222210,0.47117249,109430.0,109420.0,2.15687308]
[1751522223110,0.47117249,109430.0,109420.0,1.90864211]
[1751522223813,0.22294152,109430.0,109420.0,1.90864211]
[1751522224013,0.47117249,109430.0,109420.0,1.90864211]
[1751522224912,0.50197249,109430.0,109420.0,1.90864211]
[1751522226111,0.25374152,109430.0,109420.0,1.90864211]
[1751522226312,0.50197249,109430.0,109420.0,1.90864211]
[1751522227312,0.50197249,109430.0,109420.0,1.87814211]
[1751522227514,0.53477249,109430.0,109420.0,1.81646211]
[1751522227713,0.56527249,109430.0,109420.0,1.81646211]
[1751522229416,0.56527249,109430.0,109420.0,0.97290211]
[1751522229612,0.56527249,109430.0,109420.0,1.00580211]
[1751522230117,0.56527249,109430.0,109420.0,1.04220807]
[1751522230614,0.56527249,109430.0,109420.0,0.7939771]
[1751522230815,0.56527249,109430.0,109420.0,1.04220807]
[1751522231216,0.56527249,109430.0,109420.0,0.7939771]
[1751522231617,0.56527249,109430.0,109420.0,1.04220807]
[1751522233420,0.56527249,109430.0,109420.0,0.7939771]
[1751522233620,0.56527249,109430.0,109420.0,1.04220807]
[1751522236322,0.31704152,109430.0,109420.0,1.04220807]
[1751522236515,0.53477249,109430.0,109420.0,1.29043904]
[1751522238410,0.53477249,109430.0,109420.0,1.35443904]
[1751522243229,0.53477249,109430.0,109420.0,1.32718686]
[1751522245824,0.53477249,109430.0,109420.0,0.83072492]
[1751522246024,0.53477249,109430.0,109420.0,1.07895589]
[1751522246933,0.53477249,109430.0,109420.0,1.32718686]
[1751522248733,0.53477249,109430.0,109420.0,1.38163665]
[1751522248929,0.53477249,109430.0,109420.0,1.13340568]
[1751522249329,0.53477249,109430.0,109420.0,1.38163665]
[1751522250335,0.53477249,109430.0,109420.0,1.13340568]
[1751522254230,0.50197249,109430.0,109420.0,1.10180568]
[1751522254430,0.50197249,109430.0,109420.0,1.10482602]
[1751522255031,0.50197249,109430.0,109420.0,0.85659505]
[1751522255336,0.50197249,109430.0,109420.0,1.10482602]
[1751522256935,0.53497249,109430.0,109420.0,1.10482602]
[1751522257729,0.50197249,109430.0,109420.0,1.10482602]
[1751522259436,0.28564152,109430.0,109420.0,1.10482602]
[1751522259640,0.53387249,109430.0,109420.0,1.06842006]
[1751522259938,0.50197249,109430.0,109420.0,1.06842006]
[1751522260332,0.50197249,109430.0,109420.0,1.10479248]
[1751522261342,0.50197249,109430.0,109420.0,1.06842006]
[1751522262237,0.50229379,109430.0,109420.0,1.06842006]
[1751522262535,0.53429379,109430.0,109420.0,1.03602006]
[1751522263243,0.53429379,109430.0,109420.0,1.07239264]
[1751522264342,0.53429379,109430.0,109420.0,1.07239433]
[1751522265039,0.53429379,109430.0,109420.0,0.2765663]
[1751522265241,0.56529379,109430.0,109420.0,0.52479727]
[1751522265444,0.56529379,109430.0,109420.0,0.2765663]
[1751522265848,1.17432476,109430.0,109420.0,0.03939461]
[1751522266044,1.17432476,109430.0,109420.0,0.06667835]
[1751522266247,1.17432476,109430.0,109420.0,0.03030577]
[1751522279359,1.17432476,109430.0,109420.0,0.00302203]
[1751522280156,1.17432476,109430.0,109420.0,0.18574393]
[1751522280157,0.92609379,109430.0,109420.0,0.18574393]
[1751522280358,0.92609379,109430.0,109420.0,0.00302203]
[1751522282163,2.25244476,109430.0,109420.0,0.00302203]
[1751522282359,1.17432476,109430.0,109420.0,0.00302203]
[1751522282570,1.17432476,109430.0,109420.0,0.18574393]
[1751522282571,2.25244476,109430.0,109420.0,0.18574393]
[1751522282862,2.00421379,109430.0,109420.0,0.18574393]
[1751522283363,2.00421379,109430.0,109420.0,0.00302203]
[1751522283959,2.25244476,109430.0,109420.0,0.00302203]
[1751522284363,2.25244476,109430.0,109420.0,0.03030577]
[1751522284665,2.00421379,109430.0,109420.0,0.03030577]
[1751522284963,2.00421379,109430.0,109420.0,0.00302203]
[1751522285266,2.00421379,109430.0,109420.0,0.03030577]
[1751522285862,2.00421379,109430.0,109420.0,0.00302203]
[1751522286062,2.25244476,109430.0,109420.0,0.00302203]
[1751522290162,2.00421379,109430.0,109420.0,0.00302203]
[1751522291071,0.1827219,109420.0,109410.0,0.72536489]
[1751522291272,0.43095287,109420.0,109410.0,0.88235222]
[1751522291569,0.46195287,109420.0,109410.0,0.88235222]
[1751522292169,0.71018384,109420.0,109410.0,0.88235222]
[1751522292671,0.71018384,109420.0,109410.0,0.72845516]
[1751522292973,0.71018384,109420.0,109410.0,0.58943695]
[1751522293270,0.71018384,109420.0,109410.0,0.83866792]
[1751522293460,0.71018384,109420.0,109410.0,0.81138418]
[1751522294368,0.46195287,109420.0,109410.0,0.86583397]
[1751522294967,0.46195287,109420.0,109410.0,0.617603]
[1751522295167,0.46195287,109420.0,109410.0,0.81138418]
[1751522296969,0.46195287,109420.0,109410.0,0.56315321]
[1751522297170,0.46195287,109420.0,109410.0,0.81138418]
[1751522298971,0.46195287,109420.0,109410.0,0.617603]
[1751522299172,0.46195287,109420.0,109410.0,0.86583397]
[1751522299672,0.46195287,109420.0,109410.0,0.81138418]
[1751522300174,0.46195287,109420.0,109410.0,0.81138917]
[1751522301472,0.2137219,109420.0,109410.0,0.81138917]
[1751522301669,0.46195287,109420.0,109410.0,0.81138917]
[1751522308881,0.2137219,109420.0,109410.0,0.86583896]
[1751522309068,0.46195287,109420.0,109410.0,0.86583896]
[1751522311879,0.46195287,109420.0,109410.0,0.81138917]
[1751522312382,0.46195287,109420.0,109410.0,0.81139049]
[1751522314582,0.46195287,109420.0,109410.0,0.80829391]
[1751522314880,0.46195287,109420.0,109410.0,0.81139088]
[1751522315382,0.71018384,109420.0,109410.0,0.77501832]
[1751522315683,0.74188384,109420.0,109410.0,0.77501832]
[1751522316486,0.49365287,109420.0,109410.0,0.77501832]
[1751522317788,0.49365287,109420.0,109410.0,0.52678735]
[1751522317977,0.49365287,109420.0,109410.0,0.77501832]
[1751522319185,0.74188384,109420.0,109410.0,0.72933402]
[1751522320181,0.2454219,109420.0,109410.0,0.72933402]
[1751522320387,0.49365287,109420.0,109410.0,0.72933406]
[1751522321488,0.49365287,109420.0,109410.0,0.76570664]
[1751522322687,0.74188384,109420.0,109410.0,0.61180958]
[1751522322886,0.74188384,109420.0,109410.0,0.76570664]
[1751522323288,0.49365287,109420.0,109410.0,0.76570664]
[1751522325186,0.49365287,109420.0,109410.0,0.82015643]
[1751522326182,0.49365287,109420.0,109410.0,0.57195079]
[1751522326377,0.49365287,109420.0,109410.0,0.485101]
[1751522326584,0.49365287,109420.0,109410.0,0.70303197]
[1751522326788,0.74188384,109420.0,109410.0,0.70303197]
[1751522329792,0.77388384,109420.0,109410.0,0.70303197]
[1751522330193,0.77388384,109420.0,109410.0,0.73034123]
[1751522330695,0.77388384,109420.0,109410.0,0.70303197]
[1751522335797,0.77388384,109420.0,109410.0,0.75748176]
[1751522336789,0.77388384,109420.0,109410.0,0.28084179]
[1751522336986,0.77388384,109420.0,109410.0,0.195392]
[1751522337192,1.38291481,109420.0,109410.0,0.04149494]
[1751522337398,1.38291481,109420.0,109410.0,0.06879286]
[1751522337701,1.13468384,109420.0,109410.0,0.06879286]
[1751522338094,1.13468384,109420.0,109410.0,0.03242028]
[1751522340603,1.14385955,109420.0,109410.0,0.03242028]
[1751522341900,1.14385955,109420.0,109410.0,0.02929792]
[1751522342907,1.14385955,109420.0,109410.0,0.03229258]
[1751522343901,1.14385955,109420.0,109410.0,0.00499466]
[1751522345600,1.39209052,109420.0,109410.0,0.00499466]
[1751522348203,1.39209052,109420.0,109410.0,0.00500326]
[1751522349601,1.39209052,109420.0,109410.0,0.002]
[1751522350309,0.1827553,109400.0,109390.0,0.0952705]
[1751522350499,1.8978575,109400.0,109390.0,0.25216954]
[1751522350802,2.1936375,109400.0,109390.0,0.25216954]
[1751522351008,2.1936375,109400.0,109390.0,0.21579696]
[1751522351409,2.1936375,109400.0,109390.0,0.21879696]
[1751522351603,2.1936375,109400.0,109390.0,0.22279696]
[1751522352101,2.1936375,109400.0,109390.0,0.22279617]
[1751522352301,2.1936375,109400.0,109390.0,0.19549825]
[1751522352700,2.1936375,109400.0,109390.0,0.04160119]
[1751522352905,2.1936375,109400.0,109390.0,0.19549825]
[1751522353105,2.1936375,109400.0,109390.0,0.19249706]
[1751522354615,2.1936375,109400.0,109390.0,0.22289706]
[1751522356711,2.1936375,109400.0,109390.0,0.65390003]
[1751522356906,1.69717556,109400.0,109390.0,0.47112803]
[1751522357106,2.1936375,109400.0,109390.0,0.47112803]
[1751522357307,2.1936375,109400.0,109390.0,0.22289706]
[1751522357707,2.1936375,109400.0,109390.0,0.47112803]
[1751522357914,0.19899556,109400.0,109390.0,1.01470003]
[1751522358111,0.1827553,109400.0,109390.0,1.07279795]
[1751522358415,0.1827553,109400.0,109390.0,1.4944731]
[1751522358610,0.1827553,109400.0,109390.0,1.24624213]
[1751522358808,0.1827553,109400.0,109390.0,1.273394]
[1751522359409,0.1827553,109400.0,109390.0,1.02516303]
[1751522359712,0.1827553,109400.0,109390.0,1.273394]
[1751522359912,0.1827553,109400.0,109390.0,1.21894421]
[1751522361219,0.1827553,109400.0,109390.0,1.273394]
[1751522362120,0.1827553,109400.0,109390.0,1.21894421]
[1751522362421,0.1827553,109400.0,109390.0,1.273394]
[1751522365117,0.1827553,109400.0,109390.0,1.23702142]
[1751522365623,0.1827553,109400.0,109390.0,2.07830142]
[1751522372827,0.1827553,109400.0,109390.0,1.92440436]
[1751522373028,0.1827553,109400.0,109390.0,2.07830142]
[1751522377332,0.1827553,109400.0,109390.0,2.11462134]
[1751522377931,0.1827553,109400.0,109390.0,2.07830142]
[1751522380330,0.1827553,109400.0,109390.0,2.11462093]
[1751522380920,0.1827553,109400.0,109390.0,2.07830142]
[1751522381125,0.46278627,109400.0,109390.0,1.83007045]
[1751522381328,0.46278627,109400.0,109390.0,2.07830142]
[1751522382531,0.46278627,109400.0,109390.0,2.11462759]
[1751522382920,0.46278627,109400.0,109390.0,2.0601778]
[1751522383326,0.46278627,109400.0,109390.0,2.47542759]
[1751522383827,0.1827553,109400.0,109390.0,2.47542759]
[1751522385834,0.1827553,109400.0,109390.0,2.43910142]
[1751522386631,0.43098627,109400.0,109390.0,2.43910142]
[1751522389338,0.43098627,109400.0,109390.0,1.71750142]
[1751522389632,0.43098627,109400.0,109390.0,2.38465163]
[1751522390133,0.1827553,109400.0,109390.0,2.38465163]
[1751522391635,0.1827553,109400.0,109390.0,2.45719088]
[1751522399743,0.43098627,109400.0,109390.0,2.45719088]
[1751522399943,0.46378627,109400.0,109390.0,2.45719088]
[1751522400445,0.2155553,109400.0,109390.0,2.45719088]
[1751522400646,0.46378627,109400.0,109390.0,2.45719088]
[1751522400837,0.1827553,109400.0,109390.0,2.45719088]
[1751522401040,0.3381182,109410.0,109400.0,0.1827553]
[1751522401243,0.3381182,109410.0,109400.0,1.3179856]
[1751522401244,0.58634917,109410.0,109400.0,1.3179856]
[1751522401645,0.2467441,109410.0,109400.0,1.31299708]
[1751522402451,0.49497507,109410.0,109400.0,1.31399708]
[1751522403347,0.2467441,109410.0,109400.0,1.31399708]
[1751522407151,0.49497507,109410.0,109400.0,1.31399708]
[1751522407551,0.49497507,109410.0,109400.0,1.28259708]
[1751522407752,0.2467441,109410.0,109400.0,1.28259708]
[1751522407951,0.49497507,109410.0,109400.0,0.41638278]
[1751522408142,1.13520604,109410.0,109400.0,0.05558278]
[1751522408347,0.88697507,109410.0,109400.0,0.09197967]
[1751522409149,0.88697507,109410.0,109400.0,0.03739689]
[1751522412455,0.88697507,109410.0,109400.0,0.09197967]
[1751522413562,0.88697507,109410.0,109400.0,0.03739689]
[1751522414255,0.88697507,109410.0,109400.0,0.06469514]
[1751522419458,1.13520604,109410.0,109400.0,0.06469514]
[1751522419962,0.88697507,109410.0,109400.0,0.06469514]
[1751522420163,1.72689507,109410.0,109400.0,0.06469514]
[1751522422162,1.72689507,109410.0,109400.0,0.02829825]
[1751522423467,1.74328733,109410.0,109400.0,0.02829825]
[1751522425466,1.74328733,109410.0,109400.0,0.21105355]
[1751522426665,1.74328733,109410.0,109400.0,0.02829825]
[1751522426867,0.90336733,109410.0,109400.0,0.21105355]
[1751522427371,0.90336733,109410.0,109400.0,0.02829825]
[1751522429369,0.65513636,109410.0,109400.0,0.02829825]
[1751522429565,0.90336733,109410.0,109400.0,0.02829825]
[1751522429770,1.1515983,109410.0,109400.0,0.06469514]
[1751522430167,1.1515983,109410.0,109400.0,0.02829825]
[1751522430570,0.65513636,109410.0,109400.0,0.02829825]
[1751522430764,1.1515983,109410.0,109400.0,0.02829825]
[1751522431674,0.65513636,109410.0,109400.0,0.02829825]
[1751522431871,1.1515983,109410.0,109400.0,0.02829825]
[1751522432070,0.90336733,109410.0,109400.0,0.02829825]
[1751522433477,0.65513636,109410.0,109400.0,0.21105355]
[1751522433678,0.65513636,109410.0,109400.0,0.02829825]
[1751522433679,0.90336733,109410.0,109400.0,0.02829825]
[1751522434178,1.1515983,109410.0,109400.0,0.02829825]
[1751522435178,1.3858383,109410.0,109400.0,0.02829825]
[1751522437083,1.3858383,109410.0,109400.0,0.03133207]
[1751522438674,1.3858383,109410.0,109400.0,0.18522913]
[1751522439981,0.88937636,109410.0,109400.0,0.18522913]
[1751522440287,1.3858383,109410.0,109400.0,0.22162602]
[1751522440488,1.3858383,109410.0,109400.0,0.18522913]
[1751522441176,1.13760733,109410.0,109400.0,0.18522913]
[1751522441782,1.13760733,109410.0,109400.0,0.21772913]
[1751522442182,1.13760733,109410.0,109400.0,0.25412602]
[1751522442684,1.13760733,109410.0,109400.0,0.10022896]
[1751522442883,1.13760733,109410.0,109400.0,0.25412602]
[1751522443077,1.13760733,109410.0,109400.0,0.22682777]
[1751522443281,1.13760733,109410.0,109400.0,0.25413077]
[1751522444181,1.3858383,109410.0,109400.0,0.25413077]
[1751522445786,1.13760733,109410.0,109400.0,0.25413077]
[1751522447285,1.13760733,109410.0,109400.0,0.21773388]
[1751522449086,1.3858383,109410.0,109400.0,0.21773388]
[1751522449279,1.3858383,109410.0,109400.0,0.217768]
[1751522451484,1.3858383,109410.0,109400.0,0.03137094]
[1751522451685,1.3858383,109410.0,109390.0,0.20847984]
[1751522451686,0.2741392,109400.0,109390.0,0.20847984]
[1751522451882,2.43414226,109400.0,109390.0,0.15389706]
[1751522453187,2.43414226,109400.0,109390.0,0.15589706]
[1751522456487,2.43414226,109400.0,109390.0,0.15789706]
[1751522458588,2.07334226,109400.0,109390.0,0.15789706]
[1751522458788,2.43414226,109400.0,109390.0,0.15789706]
[1751522459983,2.68237323,109400.0,109390.0,0.15789706]
[1751522460791,2.43414226,109400.0,109390.0,0.15789706]
[1751522461695,2.44308005,109400.0,109390.0,0.15789706]
[1751522462895,2.67704005,109400.0,109390.0,0.15789706]
[1751522463693,2.67704005,109400.0,109390.0,0.16075441]
[1751522464291,2.66810226,109400.0,109390.0,0.16075441]
[1751522465592,2.67709844,109400.0,109390.0,0.16075441]
[1751522466294,2.67709844,109400.0,109390.0,0.15875441]
[1751522466595,2.67909844,109400.0,109390.0,0.15875441]
[1751522466894,2.68009844,109400.0,109390.0,0.15675441]
[1751522467290,2.31929844,109400.0,109390.0,0.15675441]
[1751522467490,2.68009844,109400.0,109390.0,0.15675441]
[1751522469999,2.92832941,109400.0,109390.0,0.15675441]
[1751522471398,2.68009844,109400.0,109390.0,0.15675441]
[1751522471592,2.92832941,109400.0,109390.0,0.15675441]
[1751522472095,2.92832941,109400.0,109390.0,0.13296151]
[1751522472297,0.19912057,109390.0,109380.0,0.0314]
[1751522472599,1.11928251,109390.0,109380.0,0.0314]
[1751522473698,1.11928251,109390.0,109380.0,0.0624]
[1751522473899,0.80815154,109390.0,109380.0,0.0955]
[1751522474300,0.80815154,109390.0,109380.0,0.2782887]
[1751522474492,0.44735154,109390.0,109380.0,0.2782887]
[1751522477704,0.44735154,109390.0,109380.0,0.52651967]
[1751522477905,0.44735154,109390.0,109380.0,0.54126923]
[1751522478305,0.19912057,109390.0,109380.0,0.54126923]
[1751522478499,0.44735154,109390.0,109380.0,0.54126923]
[1751522480407,0.44735154,109390.0,109380.0,0.34762104]
[1751522480608,0.44735154,109390.0,109380.0,0.59585201]
[1751522481608,0.44735154,109390.0,109380.0,0.63226685]
[1751522483909,0.44735154,109390.0,109380.0,0.38403588]
[1751522484108,0.44735154,109390.0,109380.0,0.63226685]
[1751522484608,0.44735154,109390.0,109380.0,0.61751729]
[1751522487110,0.19912057,109390.0,109380.0,0.61751729]
[1751522487310,0.44735154,109390.0,109380.0,0.61751729]
[1751522489312,0.44735154,109390.0,109380.0,0.36928632]
[1751522490515,0.47795154,109390.0,109380.0,0.36928632]
[1751522492210,0.47795154,109390.0,109380.0,0.61751729]
[1751522492410,0.47795154,109390.0,109380.0,0.62037474]
[1751522493721,0.47795154,109390.0,109380.0,0.37214377]
[1751522494020,0.50885154,109390.0,109380.0,0.62037474]
[1751522495323,0.50885154,109390.0,109380.0,0.37214377]
[1751522497421,0.50885154,109390.0,109380.0,0.36928632]
[1751522497724,0.50885154,109390.0,109380.0,0.33904377]
[1751522500629,0.50885154,109390.0,109380.0,0.30804377]
[1751522502133,0.50885154,109390.0,109380.0,0.55627474]
[1751522502326,0.50885154,109390.0,109380.0,0.30804377]
[1751522502527,0.50885154,109390.0,109380.0,0.55627474]
[1751522502734,0.50885154,109390.0,109380.0,0.30804377]
[1751522503022,0.50885154,109390.0,109380.0,0.55627474]
[1751522504226,0.50885154,109390.0,109380.0,0.5198599]
[1751522505027,0.50885154,109390.0,109380.0,0.27162893]
[1751522505228,0.50885154,109390.0,109380.0,0.5198599]
[1751522508534,0.50885154,109390.0,109380.0,0.27162893]
[1751522508832,0.50885154,109390.0,109380.0,0.5198599]
[1751522509434,0.50885154,109390.0,109380.0,0.27162893]
[1751522509635,0.50885154,109390.0,109380.0,0.5198599]
[1751522510835,0.50885154,109390.0,109380.0,0.27162893]
[1751522511933,0.50885154,109390.0,109380.0,0.5198599]
[1751522513035,0.86965154,109390.0,109380.0,0.08884023]
[1751522513230,0.90205154,109390.0,109380.0,0.37352134]
[1751522513432,0.90205154,109390.0,109380.0,0.55631004]
[1751522514037,0.90205154,109390.0,109380.0,0.30807907]
[1751522515438,0.90205154,109390.0,109380.0,0.12529037]
[1751522515737,1.15028251,109390.0,109380.0,0.09389037]
[1751522516138,0.90205154,109390.0,109380.0,0.09389037]
[1751522519739,1.15028251,109390.0,109380.0,0.09389037]
[1751522521038,1.15028251,109390.0,109380.0,0.09103287]
[1751522521640,0.90205154,109390.0,109380.0,0.09103287]
[1751522524552,0.90205154,109390.0,109380.0,0.27382147]
[1751522524944,0.90205154,109390.0,109380.0,0.30957899]
[1751522527648,0.90205154,109390.0,109380.0,0.30672147]
[1751522529048,0.90205154,109390.0,109380.0,0.12393287]
[1751522539158,1.15028251,109390.0,109380.0,0.12393287]
[1751522539755,1.15154054,109390.0,109380.0,0.12393287]
[1751522540356,0.90330957,109390.0,109380.0,0.12393287]
[1751522541155,0.6550786,109390.0,109380.0,0.12393287]
[1751522541351,0.90330957,109390.0,109380.0,0.12393287]
[1751522549066,1.15154054,109390.0,109380.0,0.12393287]
[1751522552175,1.15154054,109390.0,109380.0,0.09103287]
[1751522555678,0.90330957,109390.0,109380.0,0.09103287]
[1751522558474,1.15154054,109390.0,109380.0,0.09103287]
[1751522558978,0.90330957,109390.0,109380.0,0.09103287]
[1751522560182,1.15154054,109390.0,109380.0,0.09103287]
[1751522563885,1.15154054,109390.0,109380.0,0.06382109]
[1751522571492,1.15154054,109390.0,109380.0,0.027371]
[1751522573393,0.1827875,109380.0,109370.0,0.13825071]
[1751522573693,1.54770747,109380.0,109370.0,0.13825071]
[1751522574290,1.57800747,109380.0,109370.0,0.13825071]
[1751522574785,1.57800747,109380.0,109370.0,0.14025071]
[1751522576797,1.57800747,109380.0,109370.0,0.14225071]
[1751522577694,1.65071185,109380.0,109370.0,0.08766793]
[1751522580698,1.65071185,109380.0,109370.0,0.14225071]
[1751522583400,1.15424991,109380.0,109370.0,0.14225071]
[1751522583598,1.65071185,109380.0,109370.0,0.14225071]
[1751522583901,1.65071185,109380.0,109370.0,0.08766793]
[1751522585799,1.15424991,109380.0,109370.0,0.08766793]
[1751522585991,1.65071185,109380.0,109370.0,0.08766793]
[1751522587802,1.15424991,109380.0,109370.0,0.08766793]
[1751522588000,1.65071185,109380.0,109370.0,0.14225071]
[1751522588401,1.59041185,109380.0,109370.0,0.08766793]
[1751522588603,1.65441185,109380.0,109370.0,0.08766793]
[1751522592410,1.70125325,109380.0,109370.0,0.08766793]
[1751522592805,1.70125325,109380.0,109370.0,0.14225071]
[1751522597506,1.20479131,109380.0,109370.0,0.14225071]
[1751522597718,1.70125325,109380.0,109370.0,0.14225071]
[1751522598516,2.06205325,109380.0,109370.0,0.08259976]
[1751522599106,2.06205325,109380.0,109370.0,0.06778192]
[1751522600115,2.06205325,109380.0,109370.0,0.03133183]
[1751522600511,2.07103694,109380.0,109370.0,0.03133183]
[1751522600712,2.07103694,109380.0,109370.0,0.004]
[1751522603420,2.31926791,109380.0,109370.0,0.004]
[1751522606719,2.31926791,109380.0,109370.0,0.00685811]
[1751522607820,2.29473325,109380.0,109370.0,0.00685811]
[1751522609221,2.30380037,109380.0,109370.0,0.00685811]
[1751522610321,2.55203134,109380.0,109370.0,0.00685811]
[1751522614022,1.22485325,109380.0,109370.0,0.00685811]
[1751522614220,2.29465325,109380.0,109370.0,0.00685811]
[1751522616725,2.30358164,109380.0,109370.0,0.00685811]
[1751522617825,2.29465325,109380.0,109370.0,0.00685811]
[1751522621936,1.93385325,109380.0,109370.0,0.03418994]
[1751522622134,2.29465325,109380.0,109370.0,0.03418994]
[1751522622934,2.29465325,109380.0,109370.0,0.03418987]
[1751522628039,2.29465325,109380.0,109370.0,0.00685804]
[1751522628239,2.29465325,109380.0,109370.0,0.03418767]